fUST/lending_fUST_20251119
["ID","MTS","AMOUNT","RATE_DAILY","PERIOD"]
[394377259,1763509502195,224.95441776,0.00015695,2]
[394377260,1763509503629,899.81767103,0.00015839,2]
[394377261,1763509505240,2024.58975981,0.00015982,2]
[394377262,1763509541879,551.11425526,0.00015075,7]
[394377263,1763509542663,150.0,0.00014801,7]
[394377264,1763509558143,77099.46343997,0.00039889,30]
[394377267,1763509706565,170.27250786,0.00032,120]
[394377268,1763509713196,152.73519095,0.00015905,7]
[394377307,1763509831990,-151.0,0.000162,2]
[394377310,1763509832001,-216.33611871,0.00016204,2]
[394377312,1763509832013,-250.0,0.00016206,2]
[394377314,1763509832024,-77.40390695,0.00016206,2]
[394377317,1763509832039,-172.59609305,0.00016206,2]
[394377319,1763509832050,-110.43975356,0.00016206,2]
[394377322,1763509832065,-139.56024644,0.00016206,2]
[394377324,1763509832077,-250.0,0.00016206,2]
[394377327,1763509832088,-250.0,0.00016206,2]
[394377332,1763509832100,-250.0,0.00016206,2]
[394377334,1763509832111,-250.0,0.00016206,2]
[394377336,1763509832122,-250.0,0.00016206,2]
[394377338,1763509832133,-250.0,0.00016206,2]
[394377341,1763509832145,-250.0,0.00016206,2]
[394377343,1763509832157,-250.0,0.00016206,2]
[394377345,1763509832168,-209.40437684,0.00016206,2]
[394377347,1763509832180,-300.0,0.00016212,2]
[394377350,1763509832193,-300.0,0.00016212,2]
[394377352,1763509832204,-300.0,0.00016212,2]
[394377354,1763509832216,-300.0,0.00016212,2]
[394377356,1763509832228,-1200.0,0.00016212,2]
[394377359,1763509832240,-49022.86759298,0.00016213,2]
[394377361,1763509832254,-710.17380002,0.00016213,2]
[394377364,1763509832270,-266.958607,0.00016213,2]
[394377366,1763509832281,-279.05175989,0.00016213,2]
[394377368,1763509832294,-920.94824011,0.00016213,2]
[394377371,1763509832306,-500.0,0.00016214,2]
[394377373,1763509832317,-251.14918596,0.00016215,2]
[394377375,1763509832328,-128147.99859662,0.00016216,2]
[394377784,1763509841496,-500.0,0.00016206,2]
[394377786,1763509841505,-500.0,0.00016206,2]
[394377788,1763509841514,-500.0,0.00016206,2]
[394377789,1763509841524,-89801.2234474,0.00016216,2]
[394377790,1763509841677,-172619.04795598,0.00016216,2]
[394377791,1763509841687,-2566.4861045,0.00016225,2]
[394377792,1763509841696,-2627.7583285,0.00016233,2]
[394377793,1763509841813,-417.4120372,0.00016233,2]
[394377794,1763509841823,-500.0,0.00016273,2]
[394377795,1763509841832,-500.0,0.00016273,2]
[394377796,1763509841842,-500.96930845,0.00016273,2]
[394377797,1763509841851,-500.0,0.00016273,2]
[394377798,1763509841860,-500.0,0.00016273,2]
[394377799,1763509841869,-500.0,0.00016273,2]
[394377800,1763509841878,-500.0,0.00016273,2]
[394377801,1763509841888,-500.0,0.00016273,2]
[394377802,1763509841897,-506.45381358,0.00016273,2]
[394377803,1763509841905,-500.0,0.00016273,2]
[394377804,1763509841915,-500.0,0.00016273,2]
[394377805,1763509841925,-500.9277856,0.00016273,2]
[394377806,1763509841934,-500.0,0.00016273,2]
[394377807,1763509841944,-500.0,0.00016273,2]
[394377808,1763509841953,-500.0,0.00016273,2]
[394377809,1763509841962,-500.0,0.00016273,2]
[394377810,1763509841971,-500.0,0.00016273,2]
[394377811,1763509841981,-500.0,0.00016273,2]
[394377812,1763509841990,-500.0,0.00016273,2]
[394377813,1763509841999,-500.0,0.00016273,2]
[394377814,1763509842008,-500.0,0.00016273,2]
[394377815,1763509842017,-500.0,0.00016273,2]
[394377816,1763509842026,-500.0,0.00016273,2]
[394377817,1763509842036,-500.0,0.00016273,2]
[394377818,1763509842045,-500.0,0.00016273,2]
[394377819,1763509842054,-500.0,0.00016273,2]
[394377820,1763509842063,-500.0,0.00016273,2]
[394377821,1763509842072,-500.0,0.00016273,2]
[394377822,1763509842081,-534.12852606,0.00016273,2]
[394377823,1763509842090,-2251.29259707,0.00016304,2]
[394377824,1763509842099,-500.0,0.00016316,2]
[394377825,1763509842109,-500.0,0.00016316,2]
[394377826,1763509842117,-3983.51140276,0.00016348,2]
[394377827,1763509842127,-6515.92103566,0.00016348,2]
[394377828,1763509842135,-151.0,0.000164,2]
[394377829,1763509842144,-861.17,0.00016428,3]
[394377830,1763509842154,-239.94521782,0.00016438,2]
[394377831,1763509842163,-610.39477985,0.00016438,2]
[394377832,1763509842172,-500.0,0.00016438,2]
[394377833,1763509842182,-500.0,0.00016438,2]
[394377834,1763509842191,-500.0,0.00016438,2]
[394377835,1763509842205,-500.0,0.00016438,2]
[394377836,1763509842214,-500.0,0.00016438,2]
[394377837,1763509842223,-516.31698426,0.00016438,2]
[394377838,1763509842234,-500.0,0.00016438,2]
[394377839,1763509842246,-551.84723328,0.00016438,2]
[394377840,1763509842255,-500.0,0.00016438,2]
[394377841,1763509842264,-500.0,0.00016438,2]
[394377842,1763509842274,-500.0,0.00016438,2]
[394377843,1763509842283,-500.0,0.00016438,2]
[394377844,1763509842292,-500.0,0.00016438,2]
[394377845,1763509842301,-508.38718207,0.00016438,2]
[394377846,1763509842311,-915.09692772,0.00016438,2]
[394377847,1763509842320,-500.0,0.00016438,2]
[394377848,1763509842329,-151.0,0.00016438,2]
[394377849,1763509842338,-151.0,0.00016438,2]
[394377850,1763509842347,-501.0,0.00016438,2]
[394377851,1763509842356,-154.09337941,0.00016438,2]
[394377852,1763509842365,-1193.0,0.00016438,2]
[394377853,1763509842374,-582.0,0.00016438,2]
[394377854,1763509842383,-153.60225874,0.00016438,2]
[394377855,1763509842392,-154.34352779,0.00016438,2]
[394377856,1763509842401,-151.0,0.00016438,2]
[394377857,1763509842410,-151.0,0.00016438,2]
[394377859,1763509842419,-151.0,0.00016438,2]
[394377860,1763509842428,-151.0,0.00016438,2]
[394377862,1763509842437,-151.0,0.00016438,2]
[394377864,1763509842447,-151.0,0.00016438,2]
[394377866,1763509842455,-151.0,0.00016438,2]
[394377867,1763509842464,-151.0,0.00016438,2]
[394377868,1763509842473,-151.0,0.00016438,2]
[394377869,1763509842484,-151.0,0.00016438,2]
[394377870,1763509842493,-151.0,0.00016438,2]
[394377871,1763509842502,-199.499153,0.00016438,2]
[394377872,1763509842511,-6337.83299946,0.00016441,2]
[394377873,1763509842520,-500.0,0.00016465,2]
[394377874,1763509842529,-151.0,0.00016465,2]
[394377875,1763509842538,-151.0,0.00016465,2]
[394377877,1763509842547,-500.0,0.00016465,2]
[394377879,1763509842556,-500.0,0.00016465,2]
[394377880,1763509842565,-500.0,0.00016465,2]
[394377881,1763509842574,-500.0,0.00016465,2]
[394377882,1763509842583,-500.0,0.00016465,2]
[394377883,1763509842592,-500.0,0.00016465,2]
[394377884,1763509842601,-500.0,0.00016465,2]
[394377885,1763509842611,-151.0,0.00016465,2]
[394377886,1763509842620,-151.0,0.00016465,2]
[394377887,1763509842629,-501.0,0.00016465,2]
[394377888,1763509842639,-1193.0,0.00016465,2]
[394377889,1763509842648,-582.0,0.00016465,2]
[394377890,1763509842657,-194.84955325,0.00016465,2]
[394377891,1763509842666,-520.65947668,0.00016473,2]
[394377892,1763509842675,-500.0,0.00016473,2]
[394377893,1763509842684,-500.0,0.00016473,2]
[394377894,1763509842693,-500.0,0.00016473,2]
[394377895,1763509842703,-392.58132975,0.00016473,2]
[394377896,1763509842712,-501.81896579,0.00016473,2]
[394377897,1763509842721,-500.0,0.00016473,2]
[394377899,1763509842731,-500.0,0.00016473,2]
[394377900,1763509842741,-500.0,0.00016473,2]
[394377901,1763509842750,-500.0,0.00016473,2]
[394377903,1763509842759,-508.45259022,0.00016473,2]
[394377904,1763509842770,-152.515257,0.00016473,2]
[394377905,1763509842780,-152.515257,0.00016473,2]
[394377906,1763509842790,-152.515257,0.00016473,2]
[394377909,1763509842799,-152.515257,0.00016473,2]
[394377912,1763509842809,-500.0,0.00016488,2]
[394377913,1763509842818,-500.0,0.00016492,2]
[394377915,1763509842827,-151.0,0.00016492,2]
[394377917,1763509842837,-151.0,0.00016492,2]
[394377919,1763509842847,-500.0,0.00016492,2]
[394377920,1763509842855,-500.0,0.00016492,2]
[394377921,1763509842864,-500.0,0.00016492,2]
[394377922,1763509842873,-500.0,0.00016492,2]
[394377923,1763509842883,-500.0,0.00016492,2]
[394377924,1763509842892,-500.0,0.00016492,2]
[394377925,1763509842902,-500.0,0.00016493,2]
[394377926,1763509842911,-200.38171203,0.00016493,2]
[394377927,1763509842920,-151.0,0.00016493,2]
[394377928,1763509842929,-501.0,0.00016493,2]
[394377929,1763509842938,-1193.0,0.00016493,2]
[394377930,1763509842947,-582.0,0.00016493,2]
[394377931,1763509842957,-151.0,0.00016493,2]
[394377932,1763509842966,-151.0,0.00016493,2]
[394377933,1763509842975,-151.0,0.00016493,2]
[394377934,1763509842985,-151.0,0.000165,2]
[394377935,1763509842994,-151.0,0.000165,2]
[394377936,1763509843004,-151.0,0.000165,2]
[394377937,1763509843013,-151.0,0.000165,2]
[394377938,1763509843023,-151.0,0.000165,2]
[394377939,1763509843032,-151.0,0.000165,2]
[394377940,1763509843040,-163.16747433,0.0001652,2]
[394377941,1763509843050,-151.0,0.0001652,2]
[394377942,1763509843059,-500.0,0.0001652,2]
[394377943,1763509843069,-151.0,0.0001652,2]
[394377944,1763509843078,-500.0,0.0001652,2]
[394377945,1763509843087,-500.0,0.0001652,2]
[394377946,1763509843097,-500.0,0.0001652,2]
[394377948,1763509843106,-151.0,0.0001652,2]
[394377950,1763509843115,-500.0,0.0001652,2]
[394377951,1763509843124,-500.0,0.0001652,2]
[394377952,1763509843133,-204.65683614,0.0001652,2]
[394377954,1763509843142,-268.46288675,0.0001652,2]
[394377956,1763509843151,-501.0,0.0001652,2]
[394377957,1763509843160,-1193.0,0.0001652,2]
[394377958,1763509843170,-582.0,0.0001652,2]
[394377960,1763509843179,-984.32,0.00016543,2]
[394377961,1763509843188,-205.33105711,0.00016547,2]
[394377962,1763509843199,-500.0,0.00016547,2]
[394377963,1763509843209,-151.0,0.00016547,2]
[394377964,1763509843218,-500.0,0.00016547,2]
[394377965,1763509843228,-500.0,0.00016547,2]
[394377966,1763509843237,-500.0,0.00016547,2]
[394377967,1763509843248,-158.43320171,0.00016547,2]
[394377968,1763509843257,-500.0,0.00016547,2]
[394377969,1763509843266,-500.0,0.00016547,2]
[394377970,1763509843275,-501.0,0.00016548,2]
[394377971,1763509843285,-1193.0,0.00016548,2]
[394377972,1763509843294,-582.0,0.00016548,2]
[394377973,1763509843303,-500.0,0.00016575,2]
[394377974,1763509843312,-277.39577243,0.00016575,2]
[394377975,1763509843322,-500.0,0.00016575,2]
[394377976,1763509843332,-500.0,0.00016575,2]
[394377977,1763509843341,-500.0,0.00016575,2]
[394377978,1763509843350,-501.0,0.00016575,2]
[394377979,1763509843360,-1193.0,0.00016575,2]
[394377980,1763509843369,-582.0,0.00016575,2]
[394377981,1763509843379,-151.0,0.000166,2]
[394377982,1763509843388,-500.0,0.00016602,2]
[394377983,1763509843397,-501.0,0.00016602,2]
[394377984,1763509843406,-1193.0,0.00016602,2]
[394377985,1763509843416,-582.0,0.00016602,2]
[394377986,1763509843426,-500.0,0.00016629,2]
[394377987,1763509843436,-501.0,0.0001663,2]
[394377988,1763509843445,-1193.0,0.0001663,2]
[394377989,1763509843454,-582.0,0.0001663,2]
[394377990,1763509843464,-500.0,0.00016657,2]
[394377991,1763509843473,-501.0,0.00016657,2]
[394377992,1763509843483,-1193.0,0.00016657,2]
[394377993,1763509843493,-582.0,0.00016657,2]
[394377994,1763509843502,-220.0,0.00016662,2]
[394377995,1763509843511,-500.0,0.00016684,2]
[394377996,1763509843521,-151.70841556,0.00016684,2]
[394377997,1763509843530,-501.0,0.00016685,2]
[394377998,1763509843539,-1193.0,0.00016685,2]
[394377999,1763509843549,-582.0,0.00016685,2]
[394378000,1763509843559,-500.0,0.00016712,2]
[394378001,1763509843568,-168.94011262,0.00016712,2]
[394378002,1763509843577,-501.0,0.00016712,2]
[394378003,1763509843587,-1193.0,0.00016712,2]
[394378004,1763509843597,-582.0,0.00016712,2]
[394378005,1763509843607,-500.0,0.00016739,2]
[394378006,1763509843617,-251.91812557,0.00016739,2]
[394378007,1763509843627,-501.0,0.00016739,2]
[394378008,1763509843636,-1193.0,0.00016739,2]
[394378009,1763509843646,-582.0,0.00016739,2]
[394378010,1763509843655,-217.15233878,0.00016754,2]
[394378011,1763509843664,-500.0,0.00016762,2]
[394378012,1763509843674,-500.0,0.00016766,2]
[394378013,1763509843683,-501.0,0.00016767,2]
[394378014,1763509843692,-1193.0,0.00016767,2]
[394378015,1763509843701,-582.0,0.00016767,2]
[394378016,1763509843711,-151.0,0.00016783,2]
[394378017,1763509843720,-151.0,0.00016783,2]
[394378018,1763509843730,-151.0,0.00016783,2]
[394378019,1763509843740,-152.515257,0.00016793,2]
[394378020,1763509843749,-152.515257,0.00016793,2]
[394378021,1763509843758,-152.515257,0.00016793,2]
[394378022,1763509843767,-152.515257,0.00016793,2]
[394378023,1763509843776,-3497.02237523,0.00016793,2]
[394378024,1763509843786,-500.0,0.00016794,2]
[394378025,1763509843796,-501.0,0.00016794,2]
[394378026,1763509843805,-1193.0,0.00016794,2]
[394378027,1763509843814,-582.0,0.00016794,2]
[394378028,1763509843823,-151.0,0.000168,2]
[394378029,1763509843833,-1000.0,0.00016821,2]
[394378030,1763509843842,-412.65030203,0.00016821,2]
[394378031,1763509843851,-1000.0,0.00016821,2]
[394378032,1763509843861,-1000.0,0.00016821,2]
[394378033,1763509843870,-1000.0,0.00016821,2]
[394378034,1763509843880,-1000.0,0.00016821,2]
[394378035,1763509843889,-1000.0,0.00016821,2]
[394378036,1763509843899,-1000.0,0.00016821,2]
[394378037,1763509843908,-1000.0,0.00016821,2]
[394378038,1763509843917,-1000.0,0.00016821,2]
[394378039,1763509843927,-184.77359811,0.00016821,2]
[394378040,1763509843936,-1000.0,0.00016821,2]
[394378041,1763509843945,-1000.0,0.00016821,2]
[394378042,1763509843954,-1000.0,0.00016821,2]
[394378043,1763509843963,-1000.0,0.00016821,2]
[394378044,1763509843972,-210.9657147,0.00016821,2]
[394378045,1763509843982,-1000.0,0.00016821,2]
[394378046,1763509843991,-664.22872862,0.00016821,2]
[394378047,1763509844000,-502.02131017,0.00016821,2]
[394378048,1763509844010,-1000.0,0.00016821,2]
[394378049,1763509844019,-1000.0,0.00016821,2]
[394378050,1763509844028,-1000.0,0.00016821,2]
[394378051,1763509844037,-1000.0,0.00016821,2]
[394378052,1763509844046,-500.0,0.00016821,2]
[394378053,1763509844056,-501.0,0.00016822,2]
[394378054,1763509844065,-1193.0,0.00016822,2]
[394378055,1763509844074,-582.0,0.00016822,2]
[394378056,1763509844084,-500.0,0.00016849,2]
[394378057,1763509844092,-501.0,0.00016849,2]
[394378058,1763509844101,-1193.0,0.00016849,2]
[394378059,1763509844111,-582.0,0.00016849,2]
[394378060,1763509844119,-501.0,0.00016876,2]
[394378061,1763509844129,-1193.0,0.00016876,2]
[394378062,1763509844138,-582.0,0.00016876,2]
[394378063,1763509844147,-11412.70519755,0.00016879,2]
[394378064,1763509844157,-151.0,0.000169,2]
[394378065,1763509844166,-501.0,0.00016904,2]
[394378066,1763509844175,-1193.0,0.00016904,2]
[394378067,1763509844184,-582.0,0.00016904,2]
[394378068,1763509844193,-817.08608864,0.00016904,2]
[394378069,1763509844207,-501.0,0.00016931,2]
[394378070,1763509844216,-1193.0,0.00016931,2]
[394378071,1763509844226,-582.0,0.00016931,2]
[394378072,1763509844235,-501.0,0.00016959,2]
[394378073,1763509844247,-1193.0,0.00016959,2]
[394378074,1763509844256,-582.0,0.00016959,2]
[394378075,1763509844265,-500.0,0.00016973,2]
[394378076,1763509844274,-158.95978259,0.00016973,2]
[394378077,1763509844283,-159.36316277,0.00016973,2]
[394378078,1763509844292,-500.0,0.00016973,2]
[394378079,1763509844301,-500.0,0.00016973,2]
[394378080,1763509844310,-500.0,0.00016973,2]
[394378081,1763509844420,-500.0,0.00016973,2]
[394378082,1763509844430,-500.0,0.00016973,2]
[394378083,1763509844439,-344.69421403,0.00016973,2]
[394378084,1763509844448,-500.0,0.00016973,2]
[394378085,1763509844457,-500.0,0.00016973,2]
[394378086,1763509844466,-500.0,0.00016973,2]
[394378087,1763509844475,-500.0,0.00016973,2]
[394378088,1763509844485,-500.0,0.00016973,2]
[394378089,1763509844494,-500.0,0.00016973,2]
[394378090,1763509844504,-500.0,0.00016973,2]
[394378091,1763509844513,-500.0,0.00016973,2]
[394378092,1763509844522,-152.515257,0.00016973,2]
[394378093,1763509844532,-152.515257,0.00016973,2]
[394378094,1763509844542,-152.515257,0.00016973,2]
[394378095,1763509844551,-152.515254,0.00016973,2]
[394378096,1763509844560,-514.18000018,0.00016975,2]
[394378097,1763509844569,-501.0,0.00016986,2]
[394378098,1763509844579,-1193.0,0.00016986,2]
[394378099,1763509844588,-582.0,0.00016986,2]
[394378100,1763509844598,-87053.27261363,0.0001699,2]
[394378101,1763509844607,-151.0,0.0001699,2]
[394378102,1763509844617,-151.0,0.0001699,2]
[394378103,1763509844626,-151.0,0.0001699,2]
[394378104,1763509844636,-45823.08690666,0.00017,2]
[394378105,1763509844644,-156.263589,0.00017,2]
[394378106,1763509844654,-156.263589,0.00017,2]
[394378107,1763509844663,-156.263589,0.00017,2]
[394378108,1763509844672,-156.263589,0.00017,2]
[394378109,1763509844681,-704.804252,0.00017,2]
[394378110,1763509844690,-704.804252,0.00017,2]
[394378111,1763509844699,-704.804252,0.00017,2]
[394378112,1763509844709,-704.804252,0.00017,2]
[394378113,1763509844718,-151.0,0.00017,2]
[394378114,1763509844727,-151.0,0.00017,2]
[394378115,1763509844737,-501.0,0.00017013,2]
[394378116,1763509844746,-1193.0,0.00017013,2]
[394378117,1763509844756,-582.0,0.00017013,2]
[394378118,1763509844765,-1000.0,0.00017021,2]
[394378119,1763509844775,-1000.0,0.00017021,2]
[394378120,1763509844785,-418.35142931,0.00017021,2]
[394378121,1763509844794,-1000.0,0.00017021,2]
[394378122,1763509844804,-502.24962682,0.00017021,2]
[394378123,1763509844814,-1000.0,0.00017021,2]
[394378124,1763509844824,-1000.0,0.00017021,2]
[394378125,1763509844833,-500.0,0.00017036,2]
[394378126,1763509844842,-501.0,0.00017041,2]
[394378127,1763509844852,-1193.0,0.00017041,2]
[394378128,1763509844863,-582.0,0.00017041,2]
[394378129,1763509844873,-520.26166,0.00017068,2]
[394378130,1763509844882,-1213.98313009,0.00017068,2]
[394378131,1763509844892,-601.80365635,0.00017068,2]
[394378132,1763509844901,-151.0,0.000171,2]
[394378133,1763509844910,-500.0,0.000172,2]
[394378134,1763509844920,-151.0,0.000173,2]
[394378135,1763509844929,-151.0,0.000173,2]
[394378136,1763509844938,-225.18697532,0.00017302,2]
[394378137,1763509844947,-500.0,0.0001731,2]
[394378138,1763509844956,-521.17956697,0.00017368,2]
[394378139,1763509844965,-500.0,0.00017368,2]
[394378140,1763509844975,-1000.0,0.00017368,2]
[394378141,1763509844984,-1500.0,0.00017368,2]
[394378142,1763509844993,-1515.06662059,0.00017368,2]
[394378143,1763509845002,-1500.0,0.00017368,2]
[394378144,1763509845011,-1500.0,0.00017368,2]
[394378145,1763509845021,-1500.0,0.00017368,2]
[394378146,1763509845030,-1500.0,0.00017368,2]
[394378147,1763509845039,-1500.0,0.00017368,2]
[394378148,1763509845050,-500.0,0.00017368,2]
[394378149,1763509845059,-1500.0,0.00017368,2]
[394378150,1763509845069,-1500.0,0.00017368,2]
[394378151,1763509845078,-1500.0,0.00017368,2]
[394378152,1763509845087,-151.0,0.000174,2]
[394378153,1763509845096,-500.0,0.000175,2]
[394378154,1763509845105,-151.0,0.000175,2]
[394378155,1763509845115,-1000.0,0.00017521,2]
[394378156,1763509845124,-1000.63330727,0.00017521,2]
[394378157,1763509845133,-1000.0,0.00017521,2]
[394378158,1763509845143,-1000.0,0.00017521,2]
[394378159,1763509845152,-565.13086161,0.00017521,2]
[394378160,1763509845162,-1000.0,0.00017521,2]
[394378161,1763509845172,-1000.0,0.00017521,2]
[394378162,1763509845182,-1000.0,0.00017521,2]
[394378163,1763509845191,-265.93893514,0.00017521,2]
[394378164,1763509845205,-504.94382083,0.00017521,2]
[394378165,1763509845214,-172.37838401,0.00017521,2]
[394378166,1763509845224,-1000.0,0.00017521,2]
[394378167,1763509845233,-396.60399173,0.00017521,2]
[394378168,1763509845243,-472.99063921,0.00017568,2]
[394378169,1763509845252,-500.0,0.00017568,2]
[394378170,1763509845261,-1500.0,0.00017568,2]
[394378171,1763509845271,-474.15988348,0.00017568,2]
[394378172,1763509845280,-500.0,0.00017568,2]
[394378173,1763509845290,-300.0,0.0001758,2]
[394378174,1763509845299,-300.0,0.0001758,2]
[394378175,1763509845309,-300.0,0.0001758,2]
[394378176,1763509845318,-300.0,0.0001758,2]
[394378177,1763509845328,-300.0,0.0001758,2]
[394378178,1763509845337,-300.0,0.0001758,2]
[394378179,1763509845346,-300.0,0.0001758,2]
[394378180,1763509845355,-300.0,0.0001758,2]
[394378181,1763509845365,-300.0,0.0001758,2]
[394378182,1763509845374,-300.0,0.0001758,2]
[394378183,1763509845384,-300.0,0.0001758,2]
[394378184,1763509845393,-300.0,0.0001758,2]
[394378185,1763509845402,-300.0,0.0001758,2]
[394378186,1763509845411,-300.0,0.0001758,2]
[394378187,1763509845420,-300.0,0.0001758,2]
[394378188,1763509845430,-500.0,0.00017584,2]
[394378189,1763509845439,-2123.64349036,0.000176,2]
[394378190,1763509845448,-151.0,0.000176,2]
[394378191,1763509845457,-151.0,0.000176,2]
[394378192,1763509845467,-18370.64,0.00017678,3]
[394378193,1763509845476,-9185.32,0.00017678,3]
[394378194,1763509845485,-4592.66,0.00017678,3]
[394378195,1763509845495,-2296.34,0.00017678,3]
[394378196,1763509845504,-1148.16,0.00017678,3]
[394378197,1763509845513,-574.08,0.00017678,3]
[394378198,1763509845522,-151.0,0.00017678,2]
[394378199,1763509845531,-151.0,0.00017678,2]
[394378200,1763509845540,-151.0,0.00017678,2]
[394378201,1763509845550,-400.77541225,0.0001768,3]
[394378202,1763509845559,-400.77541225,0.0001768,3]
[394378203,1763509845568,-420.0,0.00017721,2]
[394378204,1763509845577,-1200.0,0.00017722,2]
[394378205,1763509845587,-151.0,0.000178,2]
[394378206,1763509845596,-151.0,0.000178,2]
[394378207,1763509845605,-1680.0,0.0001781,2]
[394378208,1763509845614,-233.51889341,0.0001785,2]
[394378209,1763509845624,-500.0,0.00017858,2]
[394378210,1763509845632,-359.765126,0.00017899,2]
[394378211,1763509845642,-359.765126,0.00017899,2]
[394378212,1763509845651,-359.765126,0.00017899,2]
[394378213,1763509845660,-359.765126,0.00017899,2]
[394378214,1763509845669,-156.263589,0.00017916,2]
[394378215,1763509845678,-156.263589,0.00017916,2]
[394378216,1763509845688,-156.263589,0.00017916,2]
[394378217,1763509845697,-156.263589,0.00017916,2]
[394378218,1763509845706,-704.804252,0.00017916,2]
[394378220,1763509845716,-704.804252,0.00017916,2]
[394378221,1763509845726,-704.804252,0.00017916,2]
[394378222,1763509845735,-704.804252,0.00017916,2]
[394378223,1763509845745,-498.83939226,0.00017916,2]
[394378225,1763509845755,-2000.0,0.00017916,2]
[394378226,1763509845764,-163.78547223,0.00017916,2]
[394378227,1763509845773,-2000.0,0.00017916,2]
[394378228,1763509845782,-150.52407567,0.00017916,2]
[394378229,1763509845792,-1368.20984407,0.00017916,2]
[394378230,1763509845801,-2000.0,0.00017916,2]
[394378231,1763509845811,-2000.0,0.00017916,2]
[394378232,1763509845820,-2000.0,0.00017916,2]
[394378233,1763509845829,-160.0,0.0001795,2]
[394378234,1763509845838,-179.66978308,0.00017973,2]
[394378235,1763509845847,-500.0,0.00017973,2]
[394378236,1763509845856,-500.0,0.00017973,2]
[394378237,1763509845866,-500.0,0.00017973,2]
[394378238,1763509845875,-500.0,0.00017973,2]
[394378239,1763509845884,-500.0,0.00017973,2]
[394378240,1763509845893,-500.0,0.00017973,2]
[394378241,1763509845902,-500.0,0.00017973,2]
[394378242,1763509845911,-158.8899792,0.00017973,2]
[394378243,1763509845920,-500.0,0.00017973,2]
[394378244,1763509845929,-512.338289,0.00017973,2]
[394378245,1763509845939,-500.0,0.00017973,2]
[394378246,1763509845948,-508.44679136,0.00017973,2]
[394378247,1763509845958,-470.46085505,0.00017973,2]
[394378248,1763509845967,-500.0,0.00017973,2]
[394378249,1763509845976,-500.0,0.00017973,2]
[394378250,1763509845987,-159.36727858,0.00017973,2]
[394378251,1763509845996,-500.0,0.00017973,2]
[394378252,1763509846005,-500.0,0.00017973,2]
[394378253,1763509846015,-500.0,0.00017973,2]
[394378254,1763509846024,-500.0,0.00017973,2]
[394378255,1763509846034,-500.0,0.00017973,2]
[394378256,1763509846043,-500.0,0.00017973,2]
[394378257,1763509846053,-500.0,0.00017973,2]
[394378258,1763509846062,-500.0,0.00017973,2]
[394378260,1763509846072,-500.0,0.00017973,2]
[394378262,1763509846083,-500.0,0.00017973,2]
[394378264,1763509846093,-500.0,0.00017973,2]
[394378266,1763509846103,-172.50479174,0.00017973,2]
[394378268,1763509846113,-500.0,0.00017973,2]
[394378269,1763509846123,-500.0,0.00017973,2]
[394378271,1763509846133,-500.8642677,0.00017973,2]
[394378273,1763509846144,-165.44024323,0.00017973,2]
[394378275,1763509846153,-249.58662098,0.00017973,2]
[394378276,1763509846163,-500.0,0.00017973,2]
[394378277,1763509846173,-500.0,0.00017973,2]
[394378278,1763509846183,-500.0,0.00017973,2]